lending/lending_fUSD_20250406
["ID","MTS","AMOUNT","RATE_DAILY","PERIOD"]
[357261646,1743963032362,-500.0,0.00048788,120]
[357261647,1743963032371,-500.0,0.00048788,120]
[357261648,1743963032381,-500.0,0.00048788,120]
[357261649,1743963032390,-500.0,0.00048788,120]
[357261650,1743963032401,-500.0,0.00048788,120]
[357261651,1743963032411,-500.0,0.00048788,120]
[357261652,1743963032422,-500.0,0.00048788,120]
[357261653,1743963032433,-500.0,0.00048788,120]
[357261654,1743963032443,-500.0,0.00048788,120]
[357261655,1743963032453,-500.0,0.00048788,120]
[357261656,1743963032462,-500.0,0.00048788,120]
[357261657,1743963032472,-286.83838901,0.00048788,120]
[357261658,1743963032482,-297.0313098,0.00048789,120]
[357261659,1743963032492,-667.14395471,0.00048789,120]
[357261660,1743963032502,-290.70894873,0.00048789,120]
[357261661,1743963032511,-667.14395471,0.00048789,120]
[357261662,1743963032521,-667.14395471,0.00048789,120]
[357261663,1743963032531,-667.14395471,0.00048789,120]
[357261664,1743963032545,-667.14395471,0.00048789,120]
[357261665,1743963032554,-667.14395471,0.00048789,120]
[357261666,1743963032564,-667.14395471,0.00048789,120]
[357261667,1743963032574,-667.14395471,0.00048789,120]
[357261668,1743963032583,-667.14395471,0.00048789,120]
[357261669,1743963032594,-667.14395471,0.00048789,120]
[357261670,1743963032604,-667.14395471,0.00048789,120]
[357261671,1743963032614,-667.14395471,0.00048789,120]
[357261672,1743963032625,-667.14395471,0.00048789,120]
[357261673,1743963032634,-667.14395471,0.00048789,120]
[357261674,1743963032644,-667.14395471,0.00048789,120]
[357261675,1743963032654,-667.14395471,0.00048789,120]
[357261676,1743963032663,-667.14395471,0.00048789,120]
[357261677,1743963032673,-1104.43578227,0.00048789,120]
[357261678,1743963032682,-1104.43578227,0.00048789,120]
[357261679,1743963032695,-1104.43578227,0.00048789,120]
[357261680,1743963032705,-1104.43578227,0.00048789,120]
[357261681,1743963032715,-1104.43578227,0.00048789,120]
[357261682,1743963032724,-102882.61090608,0.0004879,4]
[357261683,1743963036182,-377.97760007,0.0004879,4]
[357261684,1743963036194,-333.7,0.0004879,4]
[357261685,1743963036318,-1224.6596697,0.0004623,2]
[357261686,1743963036328,-14869.75861988,0.0004879,4]
[357261728,1743963037777,-16139.6,0.0004879,4]
[357261729,1743963037792,-305.64816677,0.0004879,4]
[357261730,1743963037804,-49323.0577282,0.0004879,4]
[357261731,1743963037813,-39931.0834213,0.0004879,4]
[357261732,1743963037823,-151.56,0.0004879,2]
[357261733,1743963037833,-500.0,0.00048798,120]
[357261734,1743963037843,-500.0,0.00048798,120]
[357261735,1743963037853,-458.95164317,0.00048798,120]
[357261736,1743963037863,-500.0,0.00048798,120]
[357261737,1743963037872,-339802.15776479,0.000488,120]
[357261738,1743963037892,-40343.46231751,0.000488,120]
[357261739,1743963037989,-426.50419791,0.000488,120]
[357261740,1743963038005,-1796.94033981,0.000488,120]
[357261741,1743963038017,-117629.93537998,0.000488,120]
[357261743,1743963038026,-6436.42680518,0.00048932,4]
[357261745,1743963038045,-552.6000004,0.00048932,4]
[357261922,1743963039872,-2158.12685914,0.00048932,4]
[357261927,1743963040009,-3686.942025,0.00048932,4]
[357261930,1743963040022,-1299.95754526,0.00048932,4]
[357261949,1743963040212,-1104.03092148,0.00048932,4]
[357261964,1743963040357,-1510.31157274,0.00048932,4]
[357261966,1743963040367,-1097.1554425,0.00048932,4]
[357262083,1743963042880,-1224.6596697,0.0004746,2]
[357262086,1743963042891,-12213.2056979,0.00048932,4]
[357262089,1743963042901,-1641.49,0.00048953,2]
[357262091,1743963042911,-2751.0,0.00048963,120]
[357262093,1743963042920,-285.45883079,0.00049315,120]
[357262095,1743963042930,-199.99,0.00049315,30]
[357262097,1743963042939,-3894.89479257,0.00049388,15]
[357262099,1743963042950,-3289.2043895,0.00049436,15]
[357262101,1743963042959,-1000.0,0.00049836,120]
[357262102,1743963042969,-199.99,0.0005,30]
[357262103,1743963042979,-172.26,0.00050036,2]
[357262104,1743963042989,-6655.18057022,0.00050067,4]
[357262105,1743963042998,-3894.89479257,0.00050077,15]
[357262106,1743963043008,-3289.2043895,0.00050119,15]
[357262107,1743963043018,-166.61,0.00050126,2]
[357262108,1743963043028,-200.0,0.00050463,2]
[357262109,1743963043039,-198.89,0.00050501,2]
[357262111,1743963043226,-297.87200981,0.0005057,29]
[357262112,1743963043236,-199.99,0.00050685,30]
[357262114,1743963043245,-1317.73499808,0.000507,2]
[357262115,1743963043256,-934.78,0.00050727,2]
[357262117,1743963043266,-3894.89479257,0.00050766,15]
[357262119,1743963043275,-276.86,0.00050787,120]
[357262120,1743963043285,-3289.2043895,0.00050802,15]
[357262122,1743963043295,-696.24,0.00050941,2]
[357262124,1743963043305,-500.0,0.00051065,2]
[357262125,1743963043315,-155.11,0.00051117,2]
[357262127,1743963043324,-155.11,0.00051139,2]
[357262128,1743963043334,-155.11,0.0005116,2]
[357262130,1743963043345,-155.11,0.00051181,2]
[357262131,1743963043355,-200.0,0.00051202,120]
[357262132,1743963043365,-155.11,0.00051202,2]
[357262134,1743963043375,-155.11,0.00051224,2]
[357262136,1743963043386,-155.11,0.00051245,2]
[357262138,1743963043396,-155.11,0.00051266,2]
[357262139,1743963043407,-155.11,0.00051288,2]
[357262141,1743963043416,-1322.391,0.00051288,92]
[357262143,1743963043426,-155.11,0.00051309,2]
[357262145,1743963043437,-155.11,0.0005133,2]
[357262147,1743963043447,-155.11,0.00051351,2]
[357262149,1743963043457,-199.99,0.0005137,30]
[357262150,1743963043468,-155.11,0.00051373,2]
[357262152,1743963043478,-16748.3957292,0.00051445,4]
[357262153,1743963043489,-6655.18057022,0.00051445,4]
[357262155,1743963043499,-3894.89479257,0.00051455,15]
[357262157,1743963043509,-3289.2043895,0.00051485,15]
[357262159,1743963043519,-1320.0,0.00051588,2]
[357262161,1743963043528,-150.0,0.00051781,2]
[357262163,1743963043541,-700.0,0.000518,18]
[357262165,1743963043551,-1400.0,0.000519,18]
[357262167,1743963043561,-672.75137276,0.00051953,8]
[357262169,1743963043570,-176.19256421,0.00051954,29]
[357262171,1743963043581,-165.4,0.00052013,2]
[357262172,1743963043591,-13310.3611404,0.00052034,4]
[357262174,1743963043601,-33496.7914584,0.00052044,4]
[357262176,1743963043611,-2754.68303245,0.00052044,4]
[357262179,1743963043624,-8061.31618737,0.00052044,4]
[357262222,1743963044066,-478.51073231,0.00052044,4]
[357262224,1743963044082,-2001.18547983,0.00052044,4]
[357262227,1743963044093,-2115.83476452,0.00052044,4]
[357262229,1743963044105,-4554.01151422,0.00052044,4]
[357262231,1743963044115,-1141.73078038,0.00052053,11]
[357262233,1743963044124,-500.0,0.00052054,120]
[357262235,1743963044134,-500.0,0.00052054,120]
[357262237,1743963044143,-500.0,0.00052054,120]
[357262239,1743963044153,-500.0,0.00052054,120]
[357262241,1743963044163,-526.4739631,0.00052054,120]
[357262243,1743963044174,-500.0,0.00052054,120]
[357262245,1743963044184,-500.0,0.00052054,120]
[357262247,1743963044194,-500.0,0.00052054,120]
[357262249,1743963044203,-500.0,0.00052054,120]
[357262251,1743963044212,-1000.0,0.00052054,120]
[357262253,1743963044221,-500.0,0.00052054,120]
[357262255,1743963044231,-500.0,0.00052054,120]
[357262257,1743963044240,-500.0,0.00052054,120]
[357262259,1743963044250,-500.0,0.00052054,30]
[357262261,1743963044259,-500.0,0.00052054,120]
[357262263,1743963044269,-500.0,0.00052054,120]
[357262265,1743963044279,-500.97833365,0.00052054,120]
[357262267,1743963044289,-500.0,0.00052054,120]
[357262269,1743963044299,-4330.95,0.00052054,120]
[357262271,1743963044309,-500.0,0.00052054,120]
[357262273,1743963044319,-500.0,0.00052054,120]
[357262275,1743963044329,-500.0,0.00052054,120]
[357262277,1743963044338,-500.0,0.00052054,120]
[357262279,1743963044348,-169.813844,0.00052054,120]
[357262281,1743963044357,-500.0,0.00052054,120]
[357262283,1743963044373,-366.766619,0.00052054,120]
[357262285,1743963044383,-166.382561,0.00052054,120]
[357262287,1743963044395,-500.0,0.00052054,120]
[357262289,1743963044408,-532.77,0.00052054,120]
[357262291,1743963044420,-626.73,0.00052054,120]
[357262293,1743963044431,-500.0,0.00052054,120]
[357262295,1743963044442,-176.969332,0.00052054,120]
[357262297,1743963044452,-500.0,0.00052054,120]
[357262299,1743963044463,-500.0,0.00052054,120]
[357262301,1743963044473,-882.051519,0.00052054,120]
[357262303,1743963044482,-500.0,0.00052054,120]
[357262305,1743963044492,-500.0,0.00052054,120]
[357262307,1743963044502,-500.0,0.00052054,120]
[357262309,1743963044511,-175.865933,0.00052054,120]
[357262311,1743963044521,-500.0,0.00052054,120]
[357262313,1743963044531,-500.0,0.00052054,120]
[357262315,1743963044541,-500.0,0.00052054,120]
[357262317,1743963044552,-500.0,0.00052054,120]
[357262319,1743963044564,-806.29,0.00052054,120]
[357262321,1743963044574,-500.0,0.00052054,120]
[357262323,1743963044584,-500.0,0.00052054,100]
[357262325,1743963044595,-500.0,0.00052054,120]
[357262327,1743963044606,-500.0,0.00052054,120]
[357262329,1743963044616,-503.22731153,0.00052054,120]
[357262331,1743963044626,-500.0,0.00052054,120]
[357262333,1743963044638,-658.57,0.00052054,120]
[357262335,1743963044648,-609.22,0.00052054,120]
[357262337,1743963044659,-1174.91,0.00052054,120]
[357262339,1743963044670,-500.0,0.00052054,120]
[357262341,1743963044679,-500.0,0.00052054,120]
[357262343,1743963044689,-1284.95,0.00052054,8]
[357262345,1743963044698,-500.0,0.00052054,120]
[357262347,1743963044708,-500.0,0.00052054,120]
[357262349,1743963044718,-500.0,0.00052054,120]
[357262351,1743963044729,-721.65,0.00052054,120]
[357262353,1743963044739,-500.0,0.00052054,120]
[357262355,1743963044750,-500.0,0.00052054,120]
[357262357,1743963044760,-500.0,0.00052054,120]
[357262359,1743963044772,-500.0,0.00052054,120]
[357262361,1743963044782,-500.0,0.00052054,120]
[357262363,1743963044792,-500.0,0.00052054,120]
[357262365,1743963044803,-500.0,0.00052054,120]
[357262367,1743963044813,-500.0,0.00052054,120]
[357262369,1743963044823,-500.0,0.00052054,120]
[357262371,1743963044834,-500.0,0.00052054,120]
[357262373,1743963044844,-500.0,0.00052054,120]
[357262375,1743963044853,-500.0,0.00052054,120]
[357262377,1743963044864,-500.0,0.00052054,120]
[357262379,1743963044875,-500.0,0.00052054,120]
[357262381,1743963044884,-525.66,0.00052054,120]
[357262383,1743963044894,-500.0,0.00052054,120]
[357262385,1743963044905,-500.0,0.00052054,120]
[357262387,1743963044915,-500.0,0.00052054,120]
[357262389,1743963044925,-500.0,0.00052054,120]
[357262391,1743963044934,-500.0,0.00052054,120]
[357262393,1743963044943,-500.0,0.00052054,120]
[357262395,1743963044953,-151.0,0.00052054,30]
[357262397,1743963044962,-500.0,0.00052054,120]
[357262399,1743963044972,-500.0,0.00052054,120]
[357262401,1743963044982,-654.36,0.00052054,120]
[357262404,1743963044991,-500.0,0.00052054,120]
[357262405,1743963045001,-500.0,0.00052054,120]
[357262407,1743963045011,-500.0,0.00052054,120]
[357262410,1743963045021,-408.87315507,0.00052054,120]
[357262414,1743963045054,-91.12684493,0.00052054,120]
[357262416,1743963045064,-500.0,0.00052054,120]
[357262418,1743963045073,-197.29441666,0.00052054,120]
[357262420,1743963045086,-264.26409617,0.00052054,120]
[357262429,1743963045203,423.12351694,0.00039403,30]
[357262484,1743963045797,-38.44148717,0.00052054,120]
[357262485,1743963045807,-649.03359546,0.00052054,7]
[357262486,1743963045871,-403.925,0.00052054,7]
[357262487,1743963045883,-323.81,0.00052054,7]
[357262501,1743963313129,250.0,0.00019,2]
[357262503,1743963624568,500.0,0.000394,120]
[357262504,1743963634404,500.0,0.000394,120]
[357262509,1743963732990,0.14586154,0.000329,30]
[357262513,1743963790145,-300.0,0.00021,2]
[357262514,1743963790168,-350.0,0.00023,2]
[357262515,1743963790191,-350.0,0.000231,12]
[357262516,1743963790213,-250.0,0.000231,2]
[357262517,1743963790235,-400.0,0.00025,2]
[357262518,1743963790257,-151.27,0.00026849,2]
[357262519,1743963790278,-450.0,0.00027,2]
[357262520,1743963790302,-3232.13891002,0.000329,30]
[357262521,1743963790323,-151.27,0.00032968,2]
[357262522,1743963790345,-1120.476723,0.00038805,2]
[357262523,1743963790366,-644.84436698,0.00039,30]
[357262525,1743963915572,36676.60549343,0.000394,30]
[357262526,1743963925690,2057.06678595,0.000394,120]
[357262527,1743963936113,-1432.56079566,0.0002,2]
[357262528,1743963938763,591.45303822,0.00019,2]
[357262529,1743963958975,1291.29858304,6.94e-05,2]
[357262530,1743964010876,-2989.58,0.00037067,30]
[357262531,1743964010903,-896.1912633,0.00038987,114]
[357262532,1743964010927,-19355.15563302,0.00039,30]
[357262533,1743964028101,-297.87200981,0.000199,2]
[357262534,1743964028124,-292.33569091,0.0001995,2]
[357262535,1743964031134,-2105.33023137,0.0001995,2]
[357262536,1743964031156,-370.930602,0.00019999,2]
[357262538,1743964032390,1000.0,0.000394,120]
[357262539,1743964038136,-79.069398,0.00019999,2]
[357262540,1743964038162,-692.17006512,0.0002,2]
[357262541,1743964045052,1000.0,0.000394,120]
[357262542,1743964050581,1000.0,0.000394,120]
[357262543,1743964060303,1000.0,0.000394,120]
[357262544,1743964064696,1000.0,0.000394,120]
[357262545,1743964071534,1000.0,0.000394,120]
[357262546,1743964077039,400.39017362,0.000394,120]
[357262547,1743964078950,10171.32409766,0.0003,120]
[357262548,1743964083670,1000.0,0.000394,120]
[357262549,1743964086493,733.87793304,0.0001,2]
[357262550,1743964090406,5406.1298927,0.00015,2]
[357262551,1743964090429,10000.0,0.00015,2]
[357262552,1743964090642,10000.0,0.00015,2]
[357262553,1743964090669,10000.0,0.00015,2]
[357262554,1743964090694,10000.0,0.00015,2]
[357262555,1743964090720,10000.0,0.00015,2]
[357262556,1743964090753,208664.76569931,0.00015,2]
[357262557,1743964091114,1000.0,0.000394,120]
[357262558,1743964104830,1000.0,0.000394,120]
[357262560,1743964113389,1000.0,0.000394,120]
[357262563,1743964119417,1000.0,0.000394,120]
[357262564,1743964127635,656.21128974,0.000394,120]
[357262566,1743964134161,2706.70585677,0.00039,120]
[357262567,1743964135130,227.93719594,0.00039,120]
[357262568,1743964136256,443.01670171,0.00028,60]
[357262572,1743964147130,-900.0,0.000199,7]
[357262573,1743964147152,-500.0,0.00019973,2]
[357262574,1743964147173,-300.0,0.00019999,2]
[357262575,1743964147194,-203.49626411,0.00019999,2]
[357262576,1743964147217,-207.92191686,0.00019999,2]
[357262577,1743964147242,-3902.5767137,0.0002,2]
[357262578,1743964168302,-5580.0,0.0002,2]
[357262579,1743964173104,-4396.998438,0.0002,2]
[357262584,1743964213472,239.07,0.00033806,120]
[357262595,1743964231967,-1420.76036883,0.0002,2]
[357262597,1743964231979,-3340.75846563,0.0002,2]
[357262598,1743964231991,-539.75,0.0002,2]
[357262599,1743964232003,-345.68574039,0.0002,2]
[357262600,1743964232014,-355.9885,0.0002,2]
[357262601,1743964232027,-1399.2187221,0.0002,2]
[357262602,1743964232039,-2145.020002,0.0002,2]
[357262603,1743964232155,-865.68225134,0.0002,2]
[357262604,1743964232167,-7996.29192,0.0002,2]
[357262605,1743964232178,-632.94,0.0002,2]
[357262606,1743964232189,-309.69450853,0.0002,2]
[357262607,1743964232201,-723.08598451,0.0002,2]
[357262608,1743964232212,-731.4307001,0.0002,2]
[357262609,1743964232224,-741.66842505,0.0002,2]
[357262610,1743964232252,-3538.90954348,0.0002,2]
[357262611,1743964232263,-4140.98514467,0.0002,2]
[357262612,1743964232287,-322.83442247,0.0002,2]
[357262613,1743964232299,-482.3115,0.0002,2]
[357262614,1743964232310,-330.00000008,0.0002,2]
[357262615,1743964232326,-405.23430088,0.0002,2]
[357262616,1743964232337,-1003.5759996,0.0002,2]
[357262617,1743964232348,-579.978432,0.0002,2]
[357262618,1743964232390,-404.4750197,0.0002,2]
[357262619,1743964232402,-898.46097204,0.0002,2]
[357262620,1743964236066,-540.3519349,0.0002,2]
[357262621,1743964236078,-64074.88788079,0.0002,2]
[357262622,1743964236090,-370.36999997,0.0002,2]
[357262623,1743964236133,-798.62783,0.0002,2]
[357262702,1743964237887,-149385.93117153,0.0002,2]
[357262703,1743964237900,-2052.78549733,0.0002,2]
[357262704,1743964237911,-5158.35369798,0.0002,2]
[357262705,1743964237923,-1998.29580209,0.0002,2]
[357262706,1743964238008,-4500.90693719,0.0002,2]
[357262707,1743964238022,-19591.00473941,0.0002,2]
[357262708,1743964238034,-1961.21973808,0.0002,2]
[357262709,1743964238046,-2399.99984,0.0002,2]
[357262710,1743964238058,-6600.00000015,0.0002,2]
[357262711,1743964238069,-12000.0,0.0002,2]
[357262712,1743964238081,-3831.5337775,0.0002,2]
[357262713,1743964238094,-566.74143018,0.0002,2]
[357262714,1743964238107,-302.25108529,0.0002,2]
[357262715,1743964238118,-378.78022919,0.0002,2]
[357262716,1743964238134,-629.03446771,0.0002,2]
[357262717,1743964238150,-488666.95041693,0.0002,2]
[357262720,1743964238221,-748.7479998,0.0002,2]
[357262722,1743964238233,-1984.27622816,0.0002,2]
[357262913,1743964240135,-428.6609918,0.000199,2]
[357262924,1743964240239,-841.75906883,0.000199,2]
[357262926,1743964240251,-897.93276864,0.000199,2]
[357262933,1743964240305,-31.85437906,0.000199,2]
[357262935,1743964240315,-230.40516542,0.0002,2]
[357262941,1743964240367,-1645.34369997,0.0002,2]
[357262943,1743964240381,-2025.99771864,0.0002,2]
[357262945,1743964240393,-482.48214087,0.0002,2]
[357262947,1743964240405,-5548.96272601,0.0002,2]
[357262951,1743964240430,-843.42073103,0.0002,2]
[357262970,1743964240614,-1377.29513973,0.0002,2]
[357262976,1743964240665,-297.96628425,0.0002,2]
[357262989,1743964240802,-3798.64934476,0.0002,2]
[357263243,1743964243033,-801.0,0.0002,2]
[357263245,1743964243045,-301.95010006,0.0002,2]
[357263256,1743964243159,-1199.99903289,0.0002,2]
[357263259,1743964243172,-995.5611248,0.0002,2]
[357263341,1743964243852,-324.0,0.0002,2]
[357263343,1743964243863,-1114.65,0.0002,2]
[357263346,1743964243889,-239999.99999997,0.0002,2]
[357263349,1743964243901,-15011.39478818,0.0002,2]
[357263351,1743964243912,-24922.89865289,0.0002,2]
[357263353,1743964243922,-4193.10137603,0.0002,4]
[357263355,1743964243937,-151.56,0.0002,2]
[357263357,1743964243947,-302.94920627,0.000205,2]
[357263359,1743964243958,-2554.5439059,0.000232,2]
[357263361,1743964243968,-6493.00496804,0.00024,5]
[357263363,1743964243977,-151.56,0.0002489,2]
[357263365,1743964243986,-574.20501467,0.0002489,2]
[357263367,1743964243996,-53617.79501602,0.000249,2]
[357263369,1743964244008,-56116.76431762,0.000249,2]
[357263476,1743964245237,-16499.99999998,0.000249,2]
[357263478,1743964245249,-80000.0,0.000249,2]
[357263481,1743964245271,-34565.15026067,0.000249,2]
[357263571,1743964246114,-2200.20720831,0.00023244,2]
[357263572,1743964246124,-20002.25366271,0.000249,2]
[357263575,1743964246137,-199.71611565,0.00025,2]
[357263577,1743964246147,-644.65476698,0.00025,2]
[357263578,1743964246157,-1881.99999953,0.00025,7]
[357263580,1743964246167,-1900.0,0.000259,9]
[357263582,1743964246177,-704.82613077,0.000264,2]
[357263584,1743964246188,-7903.08979566,0.0002699,2]
[357263587,1743964246199,-1871.35565441,0.00027,14]
[357263588,1743964246209,-193.32337385,0.000275,2]
[357263591,1743964246219,-2274.65520718,0.0003,2]
[357263592,1743964246229,-2000.0,0.0003,14]
[357263594,1743964246239,-4485.78138267,0.00030187,3]
[357263596,1743964246250,-475.95,0.00033622,2]
[357263598,1743964246260,-2269.87,0.00034331,2]
[357263601,1743964246270,-225.69,0.00035471,2]
[357263603,1743964246280,-571.69,0.00035729,2]
[357263604,1743964246290,-1562.29127638,0.0003593,7]
[357263607,1743964246300,-999.99,0.0003593,2]
[357263608,1743964246310,-536.35963584,0.00036,7]
[357263610,1743964246319,-150.0,0.00036291,7]
[357263626,1743964246461,-225.69,0.0003684,2]
[357263628,1743964246471,-7544.93658274,0.0003699,3]
[357263630,1743964246488,-358.15321292,0.0003699,3]
[357263632,1743964246499,-75254.22929976,0.00037,2]
[357263635,1743964246508,-363.11,0.00037,2]
[357263636,1743964246518,-2636.17,0.00037,2]
[357263638,1743964246527,-169.1,0.0003738,2]
[357263640,1743964246537,-221.07183657,0.00038805,4]
[357263642,1743964246546,-1781.99584368,0.000389,2]
[357263644,1743964246556,-151.27,0.00039087,2]
[357263646,1743964246567,-521.96938969,0.00039373,5]
[357263649,1743964246578,-503.0990967,0.00039373,5]
[357263651,1743964246587,-499.10504549,0.00039373,5]
[357263653,1743964246598,-500.0,0.00039373,5]
[357263655,1743964246608,-502.46399772,0.00039373,5]
[357263657,1743964246617,-500.0,0.00039373,5]
[357263659,1743964246626,-500.0,0.00039373,5]
[357263660,1743964246640,-251.02938972,0.00039373,5]
[357263663,1743964246651,-500.0,0.00039373,5]
[357263664,1743964246661,-151.56,0.00039389,2]
[357263667,1743964246671,-3459.67288775,0.00039399,2]
[357263670,1743964246695,-258.07540736,0.00039399,2]
[357263672,1743964246712,-1033.32510969,0.00039399,2]
[357263674,1743964246730,-502.69998846,0.00039399,2]
[357263679,1743964246766,-4380.01859325,0.00039399,2]
[357263681,1743964246788,-2514.4767885,0.00039399,2]
[357264110,1743964370587,-176.19256419,0.000199,2]
[357264111,1743964370613,-2200.20720831,0.00026589,2]
[357264112,1743964370638,-23.6002275,0.00029933,2]
[357264113,1743964382038,254.0,0.00039399,31]
[357264114,1743964382971,253.0,0.00039399,31]
[357264115,1743964399429,-260.14,0.00039827,120]
[357264116,1743964399451,-62710.8792516,0.0004,30]
[357264117,1743964453326,500.0,0.00032876,120]
[357264118,1743964453574,500.0,0.00032876,120]
[357264119,1743964453820,500.0,0.00032876,120]
[357264120,1743964454093,539.35688532,0.00032876,120]
[357264121,1743964623612,151.0,0.00039396,30]
[357264122,1743964624222,151.0,0.00039396,30]
[357264123,1743964624858,151.0,0.00039396,30]
[357264124,1743964625488,151.0,0.00039396,30]
[357264125,1743964626116,151.0,0.00039396,30]
[357264126,1743964626767,151.0,0.00039396,30]
[357264127,1743964627342,151.0,0.00039396,30]
[357264128,1743964627974,151.0,0.00039396,30]
[357264129,1743964628659,151.0,0.00039396,30]
[357264130,1743964629299,151.0,0.00039396,30]
[357264131,1743964629939,151.0,0.00039396,30]
[357264132,1743964630573,151.0,0.00039396,30]
[357264133,1743964631390,151.0,0.00039396,30]
[357264134,1743964631861,151.0,0.00039396,30]
[357264135,1743964632484,151.0,0.00039396,30]
[357264136,1743964633224,151.0,0.00039396,30]
[357264137,1743964633870,151.0,0.00039396,30]
[357264138,1743964634499,151.0,0.00039396,30]
[357264139,1743964635138,151.0,0.00039396,30]
[357264140,1743964636386,151.0,0.00039396,30]
[357264141,1743964638776,151.0,0.00039396,30]
[357264142,1743964639436,156.587,0.00039396,30]
[357264143,1743964640017,162.380719,0.00039396,30]
[357264144,1743964640662,168.3888056,0.00039396,30]
[357264145,1743964641269,174.61919141,0.00039396,30]
[357264146,1743964642008,181.08010149,0.00039396,30]
[357264147,1743964643248,187.78006525,0.00039396,30]
[357264148,1743964643882,194.72792766,0.00039396,30]
[357264149,1743964644505,201.93286099,0.00039396,30]
[357264150,1743964645172,209.40437684,0.00039396,30]
[357264151,1743964645799,217.15233878,0.00039396,30]
[357264152,1743964648823,225.18697532,0.00039396,30]
[357264153,1743964649476,225.18697532,0.00039396,30]
[357264155,1743964789744,500.0,0.00033,120]
[357264157,1743964840709,500.0,0.00039388,30]
[357264161,1743964918112,500.0,0.00039388,120]
[357264162,1743964936965,271.52639921,0.00033,120]
[357264165,1743965041212,1000.0,0.00039388,120]
[357264168,1743965119841,250.0,0.00019,2]
[357264169,1743965158130,-300.0,0.00021,2]
[357264170,1743965158151,-350.0,0.00023,2]
[357264171,1743965158173,-208.13,0.00024899,2]
[357264172,1743965158195,-400.0,0.00025,2]
[357264173,1743965158219,-208.13,0.00026269,2]
[357264174,1743965158241,-160.69,0.00026849,2]
[357264175,1743965158263,-450.0,0.00027,2]
[357264176,1743965158284,-250.0,0.00027389,2]
[357264177,1743965158464,-208.13,0.00027639,2]
[357264178,1743965158489,-500.0,0.00029,2]
[357264179,1743965158510,-208.13,0.00029009,2]
[357264180,1743965158531,-208.13,0.00030379,2]
[357264181,1743965158552,-150.0,0.00031534,2]
[357264182,1743965158574,-176.19256419,0.00031567,3]
[357264183,1743965158597,-208.13,0.00031749,2]
[357264184,1743965158622,-208.13,0.00033118,2]
[357264185,1743965158644,-208.13,0.00034488,2]
[357264186,1743965158665,-150.0,0.00034548,10]
[357264187,1743965158686,-208.13,0.00035858,2]
[357264188,1743965158708,-150.0,0.00036213,7]
[357264189,1743965158730,-423.09665576,0.0003631,2]
[357264190,1743965158751,-423.09665576,0.00036567,2]
[357264191,1743965158773,-423.09665576,0.0003678,2]
[357264192,1743965158793,-190.78,0.00037088,2]
[357264193,1743965158814,-1000.0,0.00037088,2]
[357264194,1743965158834,-1500.0,0.00037088,120]
[357264195,1743965158859,-423.09665576,0.00037137,2]
[357264196,1743965158879,-200.0,0.00037138,2]
[357264197,1743965158901,-700.84,0.00037158,2]
[357264198,1743965158922,-716.95301064,0.000372,103]
[357264199,1743965158943,-208.13,0.00037228,2]
[357264200,1743965158963,-3324.0,0.000373,5]
[357264201,1743965158983,-309.39,0.00037395,3]
[357264202,1743965159003,-200.0,0.00037424,2]
[357264203,1743965159025,-423.09665576,0.00037477,2]
[357264204,1743965159047,-286.28651251,0.00037488,15]
[357264205,1743965159069,-16017.71865887,0.00037489,2]